[Event "Titled Tuesday Blitz October 31 Early 2023"]
[White "NovoselovRoman"]
[Black "Djokic, Mihailo"]
[BlackFideId "976440"]
[WhiteElo "2549"]
[BlackElo "2704"]
[Result "0-1"]
[Round "6"]
[TimeControl "180+1"]
[Date "2023.10.31"]
[WhiteClock "0:00:14"]
[BlackClock "0:00:06"]
[Board "57"]

1. d4 {[%clk 0:03:00]}  Nf6 {[%clk 0:02:59]} 2. Nf3 {[%clk 0:02:56]}  g6 {[%clk 0:02:59]} 3. Nc3 {[%clk 0:02:55]}  d5 {[%clk 0:02:58]} 4. Bg5 {[%clk 0:02:55]}  Bg7 {[%clk 0:02:58]} 5. Qd2 {[%clk 0:02:51]}  Ne4 {[%clk 0:02:49]} 6. Qe3 {[%clk 0:02:37]}  Nxg5 {[%clk 0:02:47]} 7. Qxg5 {[%clk 0:02:37]}  e6 {[%clk 0:02:44]} 8. Qf4 {[%clk 0:02:31]}  Qd6 {[%clk 0:02:43]} 9. Qd2 {[%clk 0:02:22]}  a6 {[%clk 0:02:37]} 10. e4 {[%clk 0:02:22]}  dxe4 {[%clk 0:02:35]} 11. Nxe4 {[%clk 0:02:23]}  Qb6 {[%clk 0:02:36]} 12. O-O-O {[%clk 0:02:20]}  O-O {[%clk 0:02:31]} 13. h4 {[%clk 0:02:20]}  Rd8 {[%clk 0:02:22]} 14. h5 {[%clk 0:02:11]}  Nc6 {[%clk 0:02:22]} 15. c3 {[%clk 0:02:08]}  e5 {[%clk 0:02:18]} 16. d5 {[%clk 0:01:54]}  Bf5 {[%clk 0:02:08]} 17. Neg5 {[%clk 0:01:35]}  e4 {[%clk 0:02:02]} 18. Nh4 {[%clk 0:01:28]}  Bg4 {[%clk 0:01:57]} 19. Qf4 {[%clk 0:01:16]}  Ne5 {[%clk 0:01:50]} 20. Rd4 {[%clk 0:00:54]}  Qf6 {[%clk 0:01:38]} 21. Qxf6 {[%clk 0:00:41]}  Bxf6 {[%clk 0:01:38]} 22. Nxe4 {[%clk 0:00:42]}  Bg7 {[%clk 0:01:32]} 23. h6 {[%clk 0:00:28]}  Bh8 {[%clk 0:01:30]} 24. f3 {[%clk 0:00:25]}  Bc8 {[%clk 0:01:30]} 25. Rd1 {[%clk 0:00:19]}  b5 {[%clk 0:01:21]} 26. f4 {[%clk 0:00:19]}  Ng4 {[%clk 0:01:21]} 27. Rh3 {[%clk 0:00:17]}  f5 {[%clk 0:01:19]} 28. Ng5 {[%clk 0:00:17]}  Nf2 {[%clk 0:01:19]} 29. Rhd3 {[%clk 0:00:14]}  Nxd1 {[%clk 0:01:19]} 30. Rxd1 {[%clk 0:00:14]}  Bf6 {[%clk 0:01:17]} 31. Nhf3 {[%clk 0:00:13]}  Bb7 {[%clk 0:01:13]} 32. c4 {[%clk 0:00:14]}  bxc4 {[%clk 0:01:08]} 33. Bxc4 {[%clk 0:00:15]}  Rd6 {[%clk 0:01:09]} 34. Ne6 {[%clk 0:00:12]}  Re8 {[%clk 0:01:03]} 35. Nc5 {[%clk 0:00:12]}  Ba8 {[%clk 0:00:59]} 36. Ne6 {[%clk 0:00:10]}  Re7 {[%clk 0:00:45]} 37. Ne5 {[%clk 0:00:10]}  Bb7 {[%clk 0:00:27]} 38. Nc5 {[%clk 0:00:07]}  Bc8 {[%clk 0:00:27]} 39. Nc6 {[%clk 0:00:07]}  Re3 {[%clk 0:00:22]} 40. b3 {[%clk 0:00:03]}  Kf8 {[%clk 0:00:21]} 41. Rd3 {[%clk 0:00:02]}  Rxd3 {[%clk 0:00:21]} 42. Nxd3 {[%clk 0:00:03]}  Bb7 {[%clk 0:00:19]} 43. Nde5 {[%clk 0:00:03]}  g5 {[%clk 0:00:15]} 44. g3 {[%clk 0:00:03]}  gxf4 {[%clk 0:00:16]} 45. gxf4 {[%clk 0:00:04]}  Ke8 {[%clk 0:00:16]} 46. Kd2 {[%clk 0:00:04]}  Bxe5 {[%clk 0:00:12]} 47. fxe5 {[%clk 0:00:04]}  Rxh6 {[%clk 0:00:12]} 48. Nd4 {[%clk 0:00:04]}  f4 {[%clk 0:00:10]} 49. Ke2 {[%clk 0:00:04]}  Rh3 {[%clk 0:00:08]} 50. Ne6 {[%clk 0:00:04]}  Re3+ {[%clk 0:00:08]} 51. Kf2 {[%clk 0:00:04]}  Rxe5 {[%clk 0:00:09]} 52. Nxf4 {[%clk 0:00:04]}  Rf5 {[%clk 0:00:09]} 53. Ke3 {[%clk 0:00:05]}  h5 {[%clk 0:00:09]} 54. Ne6 {[%clk 0:00:05]}  Kd7 {[%clk 0:00:07]} 55. Ng7 {[%clk 0:00:05]}  Rg5 {[%clk 0:00:07]} 56. Ne6 {[%clk 0:00:05]}  Rg4 {[%clk 0:00:08]} 57. Nf4 {[%clk 0:00:02]}  h4 {[%clk 0:00:08]} 58. Kf3 {[%clk 0:00:03]}  Rg3+ {[%clk 0:00:09]} 59. Kf2 {[%clk 0:00:04]}  Kd6 {[%clk 0:00:09]} 60. Nh5 {[%clk 0:00:04]}  Rc3 {[%clk 0:00:09]} 61. Nf4 {[%clk 0:00:04]}  Rc2+ {[%clk 0:00:09]} 62. Ke3 {[%clk 0:00:04]}  Rxa2 {[%clk 0:00:10]} 63. Ng6 {[%clk 0:00:04]}  Bxd5 {[%clk 0:00:09]} 64. Nxh4 {[%clk 0:00:05]}  Bxc4 {[%clk 0:00:09]} 65. bxc4 {[%clk 0:00:05]}  Ra4 {[%clk 0:00:09]} 66. Kd4 {[%clk 0:00:06]}  c5+ {[%clk 0:00:09]} 67. Kc3 {[%clk 0:00:06]}  Ke5 {[%clk 0:00:09]} 68. Nf3+ {[%clk 0:00:06]}  Kd6 {[%clk 0:00:09]} 69. Nd2 {[%clk 0:00:06]}  Kc6 {[%clk 0:00:09]} 70. Ne4 {[%clk 0:00:06]}  Ra1 {[%clk 0:00:09]} 71. Nf6 {[%clk 0:00:06]}  Rc1+ {[%clk 0:00:09]} 72. Kb3 {[%clk 0:00:06]}  Rb1+ {[%clk 0:00:09]} 73. Kc3 {[%clk 0:00:06]}  a5 {[%clk 0:00:09]} 74. Nd5 {[%clk 0:00:05]}  a4 {[%clk 0:00:10]} 75. Kc2 {[%clk 0:00:05]}  Rb8 {[%clk 0:00:09]} 76. Ne7+ {[%clk 0:00:05]}  Kd7 {[%clk 0:00:10]} 77. Nd5 {[%clk 0:00:05]}  a3 {[%clk 0:00:10]} 78. Nc3 {[%clk 0:00:06]}  Kc6 {[%clk 0:00:10]} 79. Nb5 {[%clk 0:00:06]}  Rxb5 {[%clk 0:00:03]} 80. cxb5+ {[%clk 0:00:07]}  Kxb5 {[%clk 0:00:04]} 81. Kb3 {[%clk 0:00:07]}  Kc6 {[%clk 0:00:02]} 82. Kxa3 {[%clk 0:00:08]}  Kd5 {[%clk 0:00:03]} 83. Kb3 {[%clk 0:00:08]}  Kd4 {[%clk 0:00:03]} 84. Kb2 {[%clk 0:00:09]}  Kd3 {[%clk 0:00:04]} 85. Kb3 {[%clk 0:00:09]}  c4+ {[%clk 0:00:04]} 86. Kb2 {[%clk 0:00:10]}  Kd2 {[%clk 0:00:05]} 87. Kb1 {[%clk 0:00:11]}  c3 {[%clk 0:00:04]} 88. Ka2 {[%clk 0:00:11]}  c2 {[%clk 0:00:05]} 89. Kb2 {[%clk 0:00:11]}  c1=Q+ {[%clk 0:00:05]} 90. Ka2 {[%clk 0:00:11]}  Qc5 {[%clk 0:00:04]} 91. Kb3 {[%clk 0:00:12]}  Kd3 {[%clk 0:00:04]} 92. Kb2 {[%clk 0:00:12]}  Qb4+ {[%clk 0:00:05]} 93. Ka2 {[%clk 0:00:13]}  Kc2 {[%clk 0:00:05]} 94. Ka1 {[%clk 0:00:14]}  Qb2# {[%clk 0:00:06]} 0-1


[Site "https://www.chess.com"]

[Event "Titled Tuesday Blitz October 31 Early 2023"]
[White "Atakhan, Abtin"]
[Black "Titichoca Daza, Daniel"]
[WhiteFideId "22502203"]
[BlackFideId "3309550"]
[WhiteElo "2699"]
[BlackElo "2541"]
[Result "1-0"]
[Round "6"]
[TimeControl "180+1"]
[Date "2023.10.31"]
[WhiteClock "0:00:19"]
[BlackClock "0:00:22"]
[Board "58"]

1. Nf3 {[%clk 0:03:00]}  Nf6 {[%clk 0:02:56]} 2. d4 {[%clk 0:03:00]}  e6 {[%clk 0:02:56]} 3. c4 {[%clk 0:03:00]}  c5 {[%clk 0:02:54]} 4. d5 {[%clk 0:03:00]}  exd5 {[%clk 0:02:55]} 5. cxd5 {[%clk 0:03:00]}  d6 {[%clk 0:02:56]} 6. Nc3 {[%clk 0:03:01]}  g6 {[%clk 0:02:56]} 7. e4 {[%clk 0:03:00]}  a6 {[%clk 0:02:57]} 8. a4 {[%clk 0:02:50]}  Bg4 {[%clk 0:02:55]} 9. Be2 {[%clk 0:02:45]}  Bxf3 {[%clk 0:02:52]} 10. Bxf3 {[%clk 0:02:45]}  Bg7 {[%clk 0:02:53]} 11. O-O {[%clk 0:02:40]}  O-O {[%clk 0:02:54]} 12. Bf4 {[%clk 0:02:37]}  Qe7 {[%clk 0:02:52]} 13. e5 {[%clk 0:02:12]}  dxe5 {[%clk 0:02:51]} 14. d6 {[%clk 0:02:13]}  Qe6 {[%clk 0:02:43]} 15. Re1 {[%clk 0:02:14]}  Nbd7 {[%clk 0:02:37]} 16. Bxb7 {[%clk 0:02:07]}  Rab8 {[%clk 0:02:35]} 17. Bxa6 {[%clk 0:02:05]}  Rxb2 {[%clk 0:02:35]} 18. Bb5 {[%clk 0:02:00]}  Qf5 {[%clk 0:02:22]} 19. Be3 {[%clk 0:02:00]}  Ng4 {[%clk 0:02:13]} 20. Nd5 {[%clk 0:01:58]}  Nxe3 {[%clk 0:02:06]} 21. Ne7+ {[%clk 0:01:48]}  Kh8 {[%clk 0:02:05]} 22. Nxf5 {[%clk 0:01:49]}  Nxd1 {[%clk 0:02:05]} 23. Nxg7 {[%clk 0:01:50]}  Nxf2 {[%clk 0:01:51]} 24. Bxd7 {[%clk 0:01:43]}  Kxg7 {[%clk 0:01:42]} 25. a5 {[%clk 0:01:43]}  Rd8 {[%clk 0:01:34]} 26. a6 {[%clk 0:01:31]}  Rxd7 {[%clk 0:01:16]} 27. a7 {[%clk 0:01:31]}  Rxa7 {[%clk 0:01:15]} 28. Rxa7 {[%clk 0:01:31]}  Rd2 {[%clk 0:01:15]} 29. Rf1 {[%clk 0:01:21]}  Ne4 {[%clk 0:01:07]} 30. Rfxf7+ {[%clk 0:01:18]}  Kh6 {[%clk 0:01:08]} 31. d7 {[%clk 0:00:45]}  c4 {[%clk 0:00:53]} 32. h4 {[%clk 0:00:36]}  Kh5 {[%clk 0:00:53]} 33. Rf8 {[%clk 0:00:27]}  c3 {[%clk 0:00:24]} 34. d8=Q {[%clk 0:00:25]}  c2 {[%clk 0:00:24]} 35. Rxh7+ {[%clk 0:00:18]}  Kg4 {[%clk 0:00:24]} 36. Qc8+ {[%clk 0:00:19]}  Kg3 {[%clk 0:00:22]} 37. Qh3# {[%clk 0:00:19]} 1-0


[Site "https://www.chess.com"]

[Event "Titled Tuesday Blitz October 31 Early 2023"]
[White "Demin, Vladimir"]
[Black "Preotu, Razvan"]
[WhiteFideId "4167457"]
[BlackFideId "2613280"]
[WhiteElo "2525"]
[BlackElo "2689"]
[Result "0-1"]
[Round "6"]
[TimeControl "180+1"]
[Date "2023.10.31"]
[WhiteClock "0:00:01"]
[BlackClock "0:00:05"]
[Board "60"]

1. d4 {[%clk 0:02:55]}  Nf6 {[%clk 0:02:59]} 2. Nc3 {[%clk 0:02:53]}  d5 {[%clk 0:02:58]} 3. Bf4 {[%clk 0:02:53]}  c5 {[%clk 0:02:59]} 4. e4 {[%clk 0:02:53]}  Nxe4 {[%clk 0:02:58]} 5. Nxe4 {[%clk 0:02:52]}  dxe4 {[%clk 0:02:59]} 6. dxc5 {[%clk 0:02:53]}  Qa5+ {[%clk 0:03:00]} 7. c3 {[%clk 0:02:53]}  Qxc5 {[%clk 0:03:01]} 8. Qa4+ {[%clk 0:02:54]}  Nc6 {[%clk 0:03:01]} 9. Qxe4 {[%clk 0:02:54]}  g6 {[%clk 0:03:02]} 10. Nf3 {[%clk 0:02:54]}  Bg7 {[%clk 0:03:03]} 11. Qe3 {[%clk 0:02:55]}  Qxe3+ {[%clk 0:02:59]} 12. Bxe3 {[%clk 0:02:56]}  O-O {[%clk 0:02:59]} 13. Be2 {[%clk 0:02:55]}  Be6 {[%clk 0:02:50]} 14. O-O {[%clk 0:02:53]}  Rfd8 {[%clk 0:02:50]} 15. Nd2 {[%clk 0:02:51]}  Ne5 {[%clk 0:02:41]} 16. a4 {[%clk 0:02:41]}  Nd3 {[%clk 0:02:34]} 17. Rab1 {[%clk 0:02:36]}  Ba2 {[%clk 0:02:27]} 18. Ra1 {[%clk 0:02:35]}  Be6 {[%clk 0:02:27]} 19. Rab1 {[%clk 0:02:33]}  Rac8 {[%clk 0:02:24]} 20. a5 {[%clk 0:02:31]}  Nxb2 {[%clk 0:02:05]} 21. Rxb2 {[%clk 0:02:22]}  Bxc3 {[%clk 0:02:06]} 22. Rc2 {[%clk 0:01:57]}  Bf5 {[%clk 0:02:05]} 23. Ra2 {[%clk 0:01:52]}  Be6 {[%clk 0:02:04]} 24. Rc2 {[%clk 0:01:48]}  Bxa5 {[%clk 0:01:57]} 25. Rxc8 {[%clk 0:01:42]}  Rxc8 {[%clk 0:01:58]} 26. Bf3 {[%clk 0:01:38]}  b6 {[%clk 0:01:43]} 27. h4 {[%clk 0:01:34]}  f5 {[%clk 0:01:35]} 28. Rb1 {[%clk 0:01:23]}  Rc2 {[%clk 0:01:28]} 29. Nb3 {[%clk 0:01:22]}  Bxb3 {[%clk 0:01:12]} 30. Rxb3 {[%clk 0:01:20]}  e5 {[%clk 0:01:13]} 31. Bd5+ {[%clk 0:01:07]}  Kf8 {[%clk 0:01:10]} 32. Bg5 {[%clk 0:01:03]}  Bc3 {[%clk 0:00:52]} 33. Rb5 {[%clk 0:00:41]}  Bd4 {[%clk 0:00:50]} 34. Be3 {[%clk 0:00:40]}  Bxe3 {[%clk 0:00:48]} 35. fxe3 {[%clk 0:00:40]}  Rc5 {[%clk 0:00:47]} 36. Rxc5 {[%clk 0:00:39]}  bxc5 {[%clk 0:00:48]} 37. e4 {[%clk 0:00:38]}  f4 {[%clk 0:00:41]} 38. Kf2 {[%clk 0:00:35]}  Kg7 {[%clk 0:00:33]} 39. Ke2 {[%clk 0:00:20]}  Kh6 {[%clk 0:00:32]} 40. g4 {[%clk 0:00:15]}  fxg3 {[%clk 0:00:14]} 41. Kf3 {[%clk 0:00:15]}  Kh5 {[%clk 0:00:12]} 42. Kxg3 {[%clk 0:00:15]}  g5 {[%clk 0:00:12]} 43. Bf7+ {[%clk 0:00:15]}  Kh6 {[%clk 0:00:12]} 44. h5 {[%clk 0:00:14]}  c4 {[%clk 0:00:12]} 45. Bxc4 {[%clk 0:00:11]}  Kxh5 {[%clk 0:00:12]} 46. Bf7+ {[%clk 0:00:09]}  Kh6 {[%clk 0:00:11]} 47. Kg4 {[%clk 0:00:09]}  Kg7 {[%clk 0:00:12]} 48. Bb3 {[%clk 0:00:08]}  Kg6 {[%clk 0:00:10]} 49. Kg3 {[%clk 0:00:03]}  h5 {[%clk 0:00:10]} 50. Ba4 {[%clk 0:00:02]}  a5 {[%clk 0:00:07]} 51. Be8+ {[%clk 0:00:02]}  Kh6 {[%clk 0:00:04]} 52. Ba4 {[%clk 0:00:02]}  Kg7 {[%clk 0:00:02]} 53. Be8 {[%clk 0:00:02]}  Kh6 {[%clk 0:00:02]} 54. Ba4 {[%clk 0:00:02]}  g4 {[%clk 0:00:02]} 55. Kh4 {[%clk 0:00:02]}  Kg7 {[%clk 0:00:02]} 56. Be8 {[%clk 0:00:02]}  Kf8 {[%clk 0:00:02]} 57. Ba4 {[%clk 0:00:03]}  Ke7 {[%clk 0:00:02]} 58. Bd1 {[%clk 0:00:03]}  Kd6 {[%clk 0:00:02]} 59. Kxh5 {[%clk 0:00:02]}  g3 {[%clk 0:00:03]} 60. Bf3 {[%clk 0:00:02]}  a4 {[%clk 0:00:03]} 61. Kh4 {[%clk 0:00:03]}  a3 {[%clk 0:00:04]} 62. Kxg3 {[%clk 0:00:01]}  a2 {[%clk 0:00:05]} 0-1


[Site "https://www.chess.com"]

[Event "Titled Tuesday Blitz October 31 Early 2023"]
[White "Mendez Fortes, Eduardo Jesus"]
[Black "Estrada Nieto, Julian"]
[WhiteFideId "3502376"]
[BlackFideId "5101018"]
[WhiteElo "2676"]
[BlackElo "2524"]
[Result "1-0"]
[Round "6"]
[TimeControl "180+1"]
[Date "2023.10.31"]
[WhiteClock "0:01:14"]
[BlackClock "0:01:02"]
[Board "62"]

1. e4 {[%clk 0:03:00]}  e5 {[%clk 0:02:59]} 2. Nf3 {[%clk 0:03:01]}  Nc6 {[%clk 0:03:00]} 3. Bb5 {[%clk 0:03:01]}  a6 {[%clk 0:03:00]} 4. Ba4 {[%clk 0:03:02]}  Nf6 {[%clk 0:03:00]} 5. O-O {[%clk 0:03:02]}  Be7 {[%clk 0:03:01]} 6. Re1 {[%clk 0:03:02]}  b5 {[%clk 0:03:01]} 7. Bb3 {[%clk 0:03:03]}  d6 {[%clk 0:03:02]} 8. c3 {[%clk 0:03:04]}  O-O {[%clk 0:03:02]} 9. h3 {[%clk 0:03:04]}  Bb7 {[%clk 0:03:03]} 10. d4 {[%clk 0:03:04]}  Re8 {[%clk 0:03:03]} 11. Nbd2 {[%clk 0:03:02]}  Bf8 {[%clk 0:03:03]} 12. a3 {[%clk 0:02:59]}  h6 {[%clk 0:03:03]} 13. Bc2 {[%clk 0:02:51]}  Nb8 {[%clk 0:02:51]} 14. b3 {[%clk 0:02:44]}  Nbd7 {[%clk 0:02:47]} 15. Bb2 {[%clk 0:02:44]}  c6 {[%clk 0:02:31]} 16. a4 {[%clk 0:02:42]}  g6 {[%clk 0:02:21]} 17. c4 {[%clk 0:02:41]}  Bg7 {[%clk 0:02:12]} 18. d5 {[%clk 0:02:40]}  bxa4 {[%clk 0:02:08]} 19. Rxa4 {[%clk 0:02:38]}  Nc5 {[%clk 0:02:06]} 20. Ra3 {[%clk 0:02:38]}  a5 {[%clk 0:02:05]} 21. Qa1 {[%clk 0:02:33]}  Nh5 {[%clk 0:01:41]} 22. Bc3 {[%clk 0:02:31]}  Nf4 {[%clk 0:01:40]} 23. Bxa5 {[%clk 0:02:07]}  Qf6 {[%clk 0:01:35]} 24. b4 {[%clk 0:01:34]}  Ncd3 {[%clk 0:01:28]} 25. Bxd3 {[%clk 0:01:32]}  Nxd3 {[%clk 0:01:23]} 26. Rxd3 {[%clk 0:01:33]}  cxd5 {[%clk 0:01:23]} 27. cxd5 {[%clk 0:01:32]}  Ba6 {[%clk 0:01:21]} 28. Rc3 {[%clk 0:01:30]}  Bb5 {[%clk 0:01:21]} 29. Qc1 {[%clk 0:01:29]}  Qe7 {[%clk 0:01:18]} 30. Rc7 {[%clk 0:01:28]}  Qf8 {[%clk 0:01:17]} 31. Qc3 {[%clk 0:01:22]}  f5 {[%clk 0:01:16]} 32. Rc1 {[%clk 0:01:21]}  Bf6 {[%clk 0:01:09]} 33. Qe3 {[%clk 0:01:17]}  f4 {[%clk 0:01:07]} 34. Qb6 {[%clk 0:01:17]}  Bd8 {[%clk 0:01:02]} 35. Qxb5 {[%clk 0:01:14]} 1-0


[Site "https://www.chess.com"]

[Event "Titled Tuesday Blitz October 31 Early 2023"]
[White "LouieKov2022"]
[Black "Barrientos, Sergio E"]
[BlackFideId "4401824"]
[WhiteElo "2484"]
[BlackElo "2655"]
[Result "0-1"]
[Round "6"]
[TimeControl "180+1"]
[Date "2023.10.31"]
[WhiteClock "0:00:03"]
[BlackClock "0:00:36"]
[Board "69"]

1. e4 {[%clk 0:03:00]}  e5 {[%clk 0:02:58]} 2. d4 {[%clk 0:02:56]}  exd4 {[%clk 0:02:57]} 3. Qxd4 {[%clk 0:02:57]}  Nc6 {[%clk 0:02:57]} 4. Qc4 {[%clk 0:02:58]}  Nf6 {[%clk 0:02:55]} 5. Nc3 {[%clk 0:02:58]}  Bb4 {[%clk 0:02:54]} 6. Bd2 {[%clk 0:02:58]}  O-O {[%clk 0:02:49]} 7. O-O-O {[%clk 0:02:58]}  Re8 {[%clk 0:02:48]} 8. f3 {[%clk 0:02:57]}  d6 {[%clk 0:02:46]} 9. a3 {[%clk 0:02:57]}  Ba5 {[%clk 0:02:44]} 10. g4 {[%clk 0:02:48]}  Be6 {[%clk 0:02:43]} 11. Qe2 {[%clk 0:02:48]}  d5 {[%clk 0:02:15]} 12. g5 {[%clk 0:02:47]}  Nh5 {[%clk 0:02:08]} 13. Nxd5 {[%clk 0:01:50]}  Bxd2+ {[%clk 0:02:03]} 14. Qxd2 {[%clk 0:01:49]}  Bxd5 {[%clk 0:02:01]} 15. exd5 {[%clk 0:01:41]}  Ne5 {[%clk 0:02:01]} 16. f4 {[%clk 0:01:38]}  Ng6 {[%clk 0:01:59]} 17. f5 {[%clk 0:01:34]}  Ngf4 {[%clk 0:01:59]} 18. Be2 {[%clk 0:01:30]}  Re5 {[%clk 0:01:43]} 19. Bxh5 {[%clk 0:01:14]}  Nxh5 {[%clk 0:01:41]} 20. f6 {[%clk 0:01:01]}  gxf6 {[%clk 0:01:37]} 21. Nf3 {[%clk 0:00:56]}  Rf5 {[%clk 0:01:34]} 22. gxf6 {[%clk 0:00:56]}  Qxf6 {[%clk 0:01:32]} 23. Rhg1+ {[%clk 0:00:54]}  Kh8 {[%clk 0:01:31]} 24. Ng5 {[%clk 0:00:50]}  Re8 {[%clk 0:01:23]} 25. h4 {[%clk 0:00:49]}  h6 {[%clk 0:01:20]} 26. Nh3 {[%clk 0:00:19]}  Re4 {[%clk 0:01:19]} 27. Kb1 {[%clk 0:00:16]}  Rxh4 {[%clk 0:01:15]} 28. Rh1 {[%clk 0:00:15]}  Ng3 {[%clk 0:01:10]} 29. Rh2 {[%clk 0:00:15]}  Ne4 {[%clk 0:01:09]} 30. Qe3 {[%clk 0:00:12]}  Rf1 {[%clk 0:01:07]} 31. Rh1 {[%clk 0:00:06]}  Rxd1+ {[%clk 0:01:06]} 32. Rxd1 {[%clk 0:00:06]}  Qf5 {[%clk 0:01:04]} 33. Ng1 {[%clk 0:00:06]}  Rh1 {[%clk 0:01:02]} 34. Re1 {[%clk 0:00:06]}  Nf6 {[%clk 0:00:58]} 35. Nf3 {[%clk 0:00:05]}  Rxe1+ {[%clk 0:00:57]} 36. Nxe1 {[%clk 0:00:06]}  Nxd5 {[%clk 0:00:57]} 37. Qxh6+ {[%clk 0:00:06]}  Kg8 {[%clk 0:00:57]} 38. Nd3 {[%clk 0:00:06]}  b6 {[%clk 0:00:52]} 39. Qh4 {[%clk 0:00:04]}  a5 {[%clk 0:00:51]} 40. a4 {[%clk 0:00:04]}  Nf6 {[%clk 0:00:50]} 41. Qg3+ {[%clk 0:00:03]}  Kh7 {[%clk 0:00:49]} 42. Qxc7 {[%clk 0:00:04]}  Nd5 {[%clk 0:00:48]} 43. Qc6 {[%clk 0:00:03]}  Kg7 {[%clk 0:00:46]} 44. Qd6 {[%clk 0:00:03]}  Qe4 {[%clk 0:00:43]} 45. Qg3+ {[%clk 0:00:02]}  Kf6 {[%clk 0:00:44]} 46. Qd6+ {[%clk 0:00:03]}  Kg7 {[%clk 0:00:43]} 47. Qg3+ {[%clk 0:00:04]}  Kf8 {[%clk 0:00:43]} 48. Qd6+ {[%clk 0:00:04]}  Ke8 {[%clk 0:00:43]} 49. Qc6+ {[%clk 0:00:04]}  Ke7 {[%clk 0:00:44]} 50. Qb7+ {[%clk 0:00:04]}  Kf6 {[%clk 0:00:44]} 51. Qc6+ {[%clk 0:00:04]}  Kg7 {[%clk 0:00:43]} 52. Qd7 {[%clk 0:00:04]}  Ne3 {[%clk 0:00:40]} 53. Qd6 {[%clk 0:00:02]}  Qh1+ {[%clk 0:00:38]} 54. Ka2 {[%clk 0:00:02]}  Qd5+ {[%clk 0:00:39]} 55. Qxd5 {[%clk 0:00:02]}  Nxd5 {[%clk 0:00:40]} 56. Kb3 {[%clk 0:00:03]}  Kf6 {[%clk 0:00:40]} 57. Kc4 {[%clk 0:00:03]}  Ke6 {[%clk 0:00:41]} 58. Kd4 {[%clk 0:00:02]}  f5 {[%clk 0:00:40]} 59. c3 {[%clk 0:00:03]}  Nf6 {[%clk 0:00:39]} 60. Nf2 {[%clk 0:00:04]}  Kd6 {[%clk 0:00:39]} 61. Nd3 {[%clk 0:00:04]}  Nd7 {[%clk 0:00:39]} 62. b4 {[%clk 0:00:04]}  Nb8 {[%clk 0:00:38]} 63. Nf4 {[%clk 0:00:04]}  Nc6+ {[%clk 0:00:38]} 64. Kc4 {[%clk 0:00:05]}  Ke5 {[%clk 0:00:38]} 65. Nd3+ {[%clk 0:00:05]}  Ke4 {[%clk 0:00:38]} 66. Nf2+ {[%clk 0:00:05]}  Ke3 {[%clk 0:00:38]} 67. Nd1+ {[%clk 0:00:05]}  Ke2 {[%clk 0:00:38]} 68. Nb2 {[%clk 0:00:04]}  f4 {[%clk 0:00:38]} 69. Nd3 {[%clk 0:00:04]}  f3 {[%clk 0:00:39]} 70. Nf4+ {[%clk 0:00:05]}  Ke3 {[%clk 0:00:38]} 71. Nh3 {[%clk 0:00:05]}  Ne5+ {[%clk 0:00:37]} 72. Kb5 {[%clk 0:00:04]}  Nd3 {[%clk 0:00:37]} 73. bxa5 {[%clk 0:00:04]}  bxa5 {[%clk 0:00:37]} 74. Kxa5 {[%clk 0:00:05]}  Nf4 {[%clk 0:00:38]} 75. Nxf4 {[%clk 0:00:01]}  Kxf4 {[%clk 0:00:39]} 76. Kb6 {[%clk 0:00:02]}  f2 {[%clk 0:00:39]} 77. a5 {[%clk 0:00:03]}  f1=Q {[%clk 0:00:39]} 78. a6 {[%clk 0:00:04]}  Qf2+ {[%clk 0:00:39]} 79. Kb7 {[%clk 0:00:04]}  Qf3+ {[%clk 0:00:39]} 80. Kb8 {[%clk 0:00:03]}  Qc6 {[%clk 0:00:35]} 81. a7 {[%clk 0:00:03]}  Qb6+ {[%clk 0:00:35]} 82. Ka8 {[%clk 0:00:03]}  Qc7 {[%clk 0:00:36]} 83. c4 {[%clk 0:00:03]}  Qc8# {[%clk 0:00:36]} 0-1


[Site "https://www.chess.com"]

[Event "Titled Tuesday Blitz October 31 Early 2023"]
[White "Polaczek, Richard"]
[Black "Chinguun, Sumiya"]
[WhiteFideId "200026"]
[BlackFideId "4902572"]
[WhiteElo "2431"]
[BlackElo "2640"]
[Result "0-1"]
[Round "6"]
[TimeControl "180+1"]
[Date "2023.10.31"]
[WhiteClock "0:00:51"]
[BlackClock "0:02:08"]
[Board "71"]

1. d4 {[%clk 0:03:00]}  Nf6 {[%clk 0:02:59]} 2. Bg5 {[%clk 0:03:00]}  g6 {[%clk 0:02:58]} 3. Bxf6 {[%clk 0:02:59]}  exf6 {[%clk 0:02:59]} 4. c4 {[%clk 0:02:58]}  Bg7 {[%clk 0:02:59]} 5. Nc3 {[%clk 0:02:58]}  O-O {[%clk 0:02:59]} 6. e3 {[%clk 0:02:58]}  d6 {[%clk 0:02:59]} 7. g3 {[%clk 0:02:58]}  f5 {[%clk 0:03:00]} 8. Bg2 {[%clk 0:02:57]}  Nd7 {[%clk 0:03:00]} 9. Nge2 {[%clk 0:02:57]}  Nf6 {[%clk 0:03:01]} 10. Qd3 {[%clk 0:02:56]}  h5 {[%clk 0:02:59]} 11. h4 {[%clk 0:02:54]}  c6 {[%clk 0:02:59]} 12. O-O {[%clk 0:02:51]}  Re8 {[%clk 0:02:59]} 13. b4 {[%clk 0:02:51]}  Bd7 {[%clk 0:02:58]} 14. a4 {[%clk 0:02:49]}  Rc8 {[%clk 0:02:58]} 15. b5 {[%clk 0:02:48]}  Ng4 {[%clk 0:02:57]} 16. a5 {[%clk 0:02:35]}  g5 {[%clk 0:02:56]} 17. hxg5 {[%clk 0:02:33]}  Qxg5 {[%clk 0:02:55]} 18. a6 {[%clk 0:02:31]}  bxa6 {[%clk 0:02:55]} 19. bxc6 {[%clk 0:02:30]}  Bxc6 {[%clk 0:02:55]} 20. Bxc6 {[%clk 0:02:00]}  Rxc6 {[%clk 0:02:54]} 21. Ra5 {[%clk 0:02:00]}  Nh6 {[%clk 0:02:28]} 22. Nf4 {[%clk 0:01:28]}  h4 {[%clk 0:02:27]} 23. Kg2 {[%clk 0:01:24]}  hxg3 {[%clk 0:02:27]} 24. fxg3 {[%clk 0:01:24]}  Rec8 {[%clk 0:02:22]} 25. c5 {[%clk 0:01:16]}  dxc5 {[%clk 0:02:22]} 26. d5 {[%clk 0:01:16]}  Rd6 {[%clk 0:02:16]} 27. Na4 {[%clk 0:01:11]}  c4 {[%clk 0:02:14]} 28. Qc2 {[%clk 0:01:10]}  Ng4 {[%clk 0:02:14]} 29. Re1 {[%clk 0:01:06]}  Qd8 {[%clk 0:02:11]} 30. Rc5 {[%clk 0:01:04]}  Rxc5 {[%clk 0:02:10]} 31. Nxc5 {[%clk 0:01:04]}  Qa5 {[%clk 0:02:10]} 32. Rb1 {[%clk 0:00:56]}  Qxc5 {[%clk 0:02:08]} 33. Rb8+ {[%clk 0:00:55]}  Bf8 {[%clk 0:02:08]} 34. Qxf5 {[%clk 0:00:51]}  Nxe3+ {[%clk 0:02:08]} 0-1


[Site "https://www.chess.com"]